Workbook

Sheet Lliga
B1: RUMMIKUB 2022-23
B2: Mes
B3: 5 | C3: Mes | D3: =SUM(D5:D20) -> 0 | I3: Jugadors | K3: Premi segons posició
D4: Premi | E4: Punts | F4: Partides | J4: 1 | K4: 2 | L4: 3 | M4: 4 | N4: 5 | O4: 6
B5: 1 | C5: Emiliano | D5: =+G$40 -> 88 | E5: =+G$41 -> 13.89908257 | F5: =+H$40 -> 85 | G5: =+G$26 -> 80 | H5: =IF(F5<B$3/2,-1,1)*800000+D5*1000-E5*10+F5/100 -> 887861.8592 | I5: 2 | J5: 10 | K5: -10
B6: 2 | C6: Ferran | D6: =+AH$40 -> 0 | E6: =+AH$41 -> 14.9 | F6: =+AI$40 -> 4 | G6: =+AH$26 -> 40 | H6: =IF(F6<B$3/2,-1,1)*800000+D6*1000-E6*10+F6/100 -> 799851.04 | I6: 3 | J6: 10 | K6: 0 | L6: -10
B7: 3 | C7: Mariajo | D7: =+D$40 -> -8 | E7: =+D$41 -> 10.57798165 | F7: =+E$40 -> 85 | G7: =+D$26 -> 20 | H7: =IF(F7<B$3/2,-1,1)*800000+D7*1000-E7*10+F7/100 -> 791895.0702 | I7: 4 | J7: 10 | K7: 4 | L7: -4 | M7: -10
B8: 4 | C8: Nuri | D8: =+S$40 -> -10 | E8: =+S$41 -> 29.36363636 | F8: =+T$40 -> 4 | G8: =+S$26 -> 10 | H8: =IF(F8<B$3/2,-1,1)*800000+D8*1000-E8*10+F8/100 -> 789706.4036 | I8: 5 | J8: 10 | K8: 5 | L8: 0 | M8: -5 | N8: -10
B9: 5 | C9: Álex | D9: =+M$40 -> 4 | E9: =+M$41 -> 6 | F9: =+N$40 -> 1 | G9: =+M$26 -> 0 | H9: =IF(F9<B$3/2,-1,1)*800000+D9*1000-E9*10+F9/100 -> -796059.99 | I9: 6 | J9: 10 | K9: 6 | L9: 2 | M9: -2 | N9: -6 | O9: -10
B10: 6 | C10: Rosa | D10: =+Y$40 -> 4 | E10: =+Y$41 -> 12.33333333 | F10: =+Z$40 -> 1 | G10: =+Y$26 -> 0 | H10: =IF(F10<B$3/2,-1,1)*800000+D10*1000-E10*10+F10/100 -> -796123.3233
B11: 7 | C11: Jorge | D11: =+BC$40 -> 0 | E11: =+BC$41 -> 10.5 | F11: =+BD$40 -> 1 | G11: =+BC$26 -> 0 | H11: =IF(F11<B$3/2,-1,1)*800000+D11*1000-E11*10+F11/100 -> -800104.99
B12: 8 | C12: Chesca | D12: =+AQ$40 -> 0 | E12: =+AQ$41 -> 11.22222222 | F12: =+AR$40 -> 1 | G12: =+AQ$26 -> 0 | H12: =IF(F12<B$3/2,-1,1)*800000+D12*1000-E12*10+F12/100 -> -800112.2122
B13: 9 | C13: Jordi V. | D13: =+AE$40 -> 0 | E13: =+AE$41 -> 29.4 | F13: =+AF$40 -> 2 | G13: =+AE$26 -> 0 | H13: =IF(F13<B$3/2,-1,1)*800000+D13*1000-E13*10+F13/100 -> -800293.98
B14: 10 | C14: Fely | D14: =+AN$40 -> -6 | E14: =+AN$41 -> 18.53846154 | F14: =+AO$40 -> 2 | G14: =+AN$26 -> 0 | H14: =IF(F14<B$3/2,-1,1)*800000+D14*1000-E14*10+F14/100 -> -806185.3646
B15: 11 | C15: José | D15: =+AK$40 -> -8 | E15: =+AK$41 -> 15.61538462 | F15: =+AL$40 -> 2 | G15: =+AK$26 -> 0 | H15: =IF(F15<B$3/2,-1,1)*800000+D15*1000-E15*10+F15/100 -> -808156.1338
B16: 12 | C16: Mª Carmen | D16: =+AZ$40 -> -10 | E16: =+AZ$41 -> 12.28571429 | F16: =+BA$40 -> 1 | G16: =+AZ$26 -> 0 | H16: =IF(F16<B$3/2,-1,1)*800000+D16*1000-E16*10+F16/100 -> -810122.8471
B17: 13 | C17: Marcos | D17: =+J$40 -> -10 | E17: =+J$41 -> 16.33333333 | F17: =+K$40 -> 1 | G17: =+J$26 -> 0 | H17: =IF(F17<B$3/2,-1,1)*800000+D17*1000-E17*10+F17/100 -> -810163.3233
B18: 14 | C18: Luisa | D18: =+AB$40 -> -10 | E18: =+AB$41 -> 20.33333333 | F18: =+AC$40 -> 1 | G18: =+AB$26 -> 0 | H18: =IF(F18<B$3/2,-1,1)*800000+D18*1000-E18*10+F18/100 -> -810203.3233
B19: 15 | C19: Marta | D19: =+P$40 -> -14 | E19: =+P$41 -> 10.14285714 | F19: =+Q$40 -> 2 | G19: =+P$26 -> 0 | H19: =IF(F19<B$3/2,-1,1)*800000+D19*1000-E19*10+F19/100 -> -814101.4086
B20: 16 | C20: Montse | D20: =+V$40 -> -20 | E20: =+V$41 -> 52 | F20: =+W$40 -> 2 | G20: =+V$26 -> 0 | H20: =IF(F20<B$3/2,-1,1)*800000+D20*1000-E20*10+F20/100 -> -820519.98
B21: 17 | C21: Grau | D21: =+AW$40 -> -100000000 | E21: =+AW$41 -> 0 | F21: =+AX$40 -> 0 | G21: =+AW$26 -> 0 | H21: =IF(F21<B$3/2,-1,1)*800000+D21*1000-E21*10+F21/100 -> -100000800000
B22: 18 | C22: Goretti | D22: =+AT$40 -> -100000000 | E22: =+AT$41 -> 0 | F22: =+AU$40 -> 0 | G22: =+AT$26 -> 0 | H22: -100000800000
B23: 19 | C23: Marina | D23: =+BF$40 -> -100000000 | E23: =+BF$41 -> 0 | F23: =+BG$40 -> 0 | G23: =+BF$26 -> 0 | H23: -100000800000
C26: General | D26: =+D27*D28 -> 20 | E26: =+E27*E28 -> 85 | G26: =+G27*G28 -> 80 | H26: =+H27*H28 -> 85 | J26: =+J27*J28 -> 0 | K26: =+K27*K28 -> 1 | M26: =+M27*M28 -> 0 | N26: =+N27*N28 -> 1 | P26: =+P27*P28 -> 0 | Q26: =+Q27*Q28 -> 2 | S26: =+S27*S28 -> 10 | T26: =+T27*T28 -> 4 | V26: =+V27*V28 -> 0 | W26: =+W27*W28 -> 2 | Y26: =+Y27*Y28 -> 0 | Z26: =+Z27*Z28 -> 1 | AB26: =+AB27*AB28 -> 0 | AC26: =+AC27*AC28 -> 1 | AE26: =+AE27*AE28 -> 0 | AF26: =+AF27*AF28 -> 2 | AH26: =+AH27*AH28 -> 40 | AI26: =+AI27*AI28 -> 4 | AK26: =+AK27*AK28 -> 0 | AL26: =+AL27*AL28 -> 2 | AN26: =+AN27*AN28 -> 0 | AO26: =+AO27*AO28 -> 2 | AQ26: =+AQ27*AQ28 -> 0 | AR26: =+AR27*AR28 -> 1 | AT26: =+AT27*AT28 -> 0 | AU26: =+AU27*AU28 -> 0 | AW26: =+AW27*AW28 -> 0 | AX26: =+AX27*AX28 -> 0 | AZ26: =+AZ27*AZ28 -> 0 | BA26: =+BA27*BA28 -> 1 | BC26: =+BC27*BC28 -> 0 | BD26: =+BD27*BD28 -> 1 | BF26: =+BF27*BF28 -> 0 | BG26: =+BG27*BG28 -> 0
D27: =IF($C39>3,1,0) -> 1 | E27: =IF($C39>3,1,0) -> 1 | G27: =IF($C39>3,1,0) -> 1 | H27: =IF($C39>3,1,0) -> 1 | J27: =IF($C39>3,1,0) -> 1 | K27: =IF($C39>3,1,0) -> 1 | M27: =IF($C39>3,1,0) -> 1 | N27: =IF($C39>3,1,0) -> 1 | P27: =IF($C39>3,1,0) -> 1 | Q27: =IF($C39>3,1,0) -> 1 | S27: =IF($C39>3,1,0) -> 1 | T27: =IF($C39>3,1,0) -> 1 | V27: =IF($C39>3,1,0) -> 1 | W27: =IF($C39>3,1,0) -> 1 | Y27: =IF($C39>3,1,0) -> 1 | Z27: =IF($C39>3,1,0) -> 1 | AB27: =IF($C39>3,1,0) -> 1 | AC27: =IF($C39>3,1,0) -> 1 | AE27: =IF($C39>3,1,0) -> 1 | AF27: =IF($C39>3,1,0) -> 1 | AH27: =IF($C39>3,1,0) -> 1 | AI27: =IF($C39>3,1,0) -> 1 | AK27: =IF($C39>3,1,0) -> 1 | AL27: =IF($C39>3,1,0) -> 1 | AN27: =IF($C39>3,1,0) -> 1 | AO27: =IF($C39>3,1,0) -> 1 | AQ27: =IF($C39>3,1,0) -> 1 | AR27: =IF($C39>3,1,0) -> 1 | AT27: =IF($C39>3,1,0) -> 1 | AU27: =IF($C39>3,1,0) -> 1 | AW27: =IF($C39>3,1,0) -> 1 | AX27: =IF($C39>3,1,0) -> 1 | AZ27: =IF($C39>3,1,0) -> 1 | BA27: =IF($C39>3,1,0) -> 1 | BC27: =IF($C39>3,1,0) -> 1 | BD27: =IF($C39>3,1,0) -> 1 | BF27: =IF($C39>3,1,0) -> 1 | BG27: =IF($C39>3,1,0) -> 1
D28: =MAX(D29:D33) -> 20 | E28: =+E40 -> 85 | G28: =MAX(G29:G33) -> 80 | H28: =+H40 -> 85 | J28: =MAX(J29:J33) -> 0 | K28: =+K40 -> 1 | M28: =MAX(M29:M33) -> 0 | N28: =+N40 -> 1 | P28: =MAX(P29:P33) -> 0 | Q28: =+Q40 -> 2 | S28: =MAX(S29:S33) -> 10 | T28: =+T40 -> 4 | V28: =MAX(V29:V33) -> 0 | W28: =+W40 -> 2 | Y28: =MAX(Y29:Y33) -> 0 | Z28: =+Z40 -> 1 | AB28: =MAX(AB29:AB33) -> 0 | AC28: =+AC40 -> 1 | AE28: =MAX(AE29:AE33) -> 0 | AF28: =+AF40 -> 2 | AH28: =MAX(AH29:AH33) -> 40 | AI28: =+AI40 -> 4 | AK28: =MAX(AK29:AK33) -> 0 | AL28: =+AL40 -> 2 | AN28: =MAX(AN29:AN33) -> 0 | AO28: =+AO40 -> 2 | AQ28: =MAX(AQ29:AQ33) -> 0 | AR28: =+AR40 -> 1 | AT28: =MAX(AT29:AT33) -> 0 | AU28: =+AU40 -> 0 | AW28: =MAX(AW29:AW33) -> 0 | AX28: =+AX40 -> 0 | AZ28: =MAX(AZ29:AZ33) -> 0 | BA28: =+BA40 -> 1 | BC28: =MAX(BC29:BC33) -> 0 | BD28: =+BD40 -> 1 | BF28: =MAX(BF29:BF33) -> 0 | BG28: =+BG40 -> 0
D29: =IF(D$34=5,5,0) -> 0 | G29: =IF(G$34=5,5,0) -> 0 | J29: =IF(J$34=5,5,0) -> 0 | M29: =IF(M$34=5,5,0) -> 0 | P29: =IF(P$34=5,5,0) -> 0 | S29: =IF(S$34=5,5,0) -> 0 | V29: =IF(V$34=5,5,0) -> 0 | Y29: =IF(Y$34=5,5,0) -> 0 | AB29: =IF(AB$34=5,5,0) -> 0 | AE29: =IF(AE$34=5,5,0) -> 0 | AH29: =IF(AH$34=5,5,0) -> 0 | AK29: =IF(AK$34=5,5,0) -> 0 | AN29: =IF(AN$34=5,5,0) -> 0 | AQ29: =IF(AQ$34=5,5,0) -> 0 | AT29: =IF(AT$34=5,5,0) -> 0 | AW29: =IF(AW$34=5,5,0) -> 0 | AZ29: =IF(AZ$34=5,5,0) -> 0 | BC29: =IF(BC$34=5,5,0) -> 0 | BF29: =IF(BF$34=5,5,0) -> 0
D30: =IF(D$34=4,10,0) -> 0 | G30: =IF(G$34=4,10,0) -> 0 | J30: =IF(J$34=4,10,0) -> 0 | M30: =IF(M$34=4,10,0) -> 0 | P30: =IF(P$34=4,10,0) -> 0 | S30: =IF(S$34=4,10,0) -> 10 | V30: =IF(V$34=4,10,0) -> 0 | Y30: =IF(Y$34=4,10,0) -> 0 | AB30: =IF(AB$34=4,10,0) -> 0 | AE30: =IF(AE$34=4,10,0) -> 0 | AH30: =IF(AH$34=4,10,0) -> 0 | AK30: =IF(AK$34=4,10,0) -> 0 | AN30: =IF(AN$34=4,10,0) -> 0 | AQ30: =IF(AQ$34=4,10,0) -> 0 | AT30: =IF(AT$34=4,10,0) -> 0 | AW30: =IF(AW$34=4,10,0) -> 0 | AZ30: =IF(AZ$34=4,10,0) -> 0 | BC30: =IF(BC$34=4,10,0) -> 0 | BF30: =IF(BF$34=4,10,0) -> 0
D31: =IF(D$34=3,20,0) -> 20 | G31: =IF(G$34=3,20,0) -> 0 | J31: =IF(J$34=3,20,0) -> 0 | M31: =IF(M$34=3,20,0) -> 0 | P31: =IF(P$34=3,20,0) -> 0 | S31: =IF(S$34=3,20,0) -> 0 | V31: =IF(V$34=3,20,0) -> 0 | Y31: =IF(Y$34=3,20,0) -> 0 | AB31: =IF(AB$34=3,20,0) -> 0 | AE31: =IF(AE$34=3,20,0) -> 0 | AH31: =IF(AH$34=3,20,0) -> 0 | AK31: =IF(AK$34=3,20,0) -> 0 | AN31: =IF(AN$34=3,20,0) -> 0 | AQ31: =IF(AQ$34=3,20,0) -> 0 | AT31: =IF(AT$34=3,20,0) -> 0 | AW31: =IF(AW$34=3,20,0) -> 0 | AZ31: =IF(AZ$34=3,20,0) -> 0 | BC31: =IF(BC$34=3,20,0) -> 0 | BF31: =IF(BF$34=3,20,0) -> 0
D32: =IF(D$34=2,40,0) -> 0 | G32: =IF(G$34=2,40,0) -> 0 | J32: =IF(J$34=2,40,0) -> 0 | M32: =IF(M$34=2,40,0) -> 0 | P32: =IF(P$34=2,40,0) -> 0 | S32: =IF(S$34=2,40,0) -> 0 | V32: =IF(V$34=2,40,0) -> 0 | Y32: =IF(Y$34=2,40,0) -> 0 | AB32: =IF(AB$34=2,40,0) -> 0 | AE32: =IF(AE$34=2,40,0) -> 0 | AH32: =IF(AH$34=2,40,0) -> 40 | AK32: =IF(AK$34=2,40,0) -> 0 | AN32: =IF(AN$34=2,40,0) -> 0 | AQ32: =IF(AQ$34=2,40,0) -> 0 | AT32: =IF(AT$34=2,40,0) -> 0 | AW32: =IF(AW$34=2,40,0) -> 0 | AZ32: =IF(AZ$34=2,40,0) -> 0 | BC32: =IF(BC$34=2,40,0) -> 0 | BF32: =IF(BF$34=2,40,0) -> 0
D33: =IF(D$34=1,80,0) -> 0 | G33: =IF(G$34=1,80,0) -> 80 | J33: =IF(J$34=1,80,0) -> 0 | M33: =IF(M$34=1,80,0) -> 0 | P33: =IF(P$34=1,80,0) -> 0 | S33: =IF(S$34=1,80,0) -> 0 | V33: =IF(V$34=1,80,0) -> 0 | Y33: =IF(Y$34=1,80,0) -> 0 | AB33: =IF(AB$34=1,80,0) -> 0 | AE33: =IF(AE$34=1,80,0) -> 0 | AH33: =IF(AH$34=1,80,0) -> 0 | AK33: =IF(AK$34=1,80,0) -> 0 | AN33: =IF(AN$34=1,80,0) -> 0 | AQ33: =IF(AQ$34=1,80,0) -> 0 | AT33: =IF(AT$34=1,80,0) -> 0 | AW33: =IF(AW$34=1,80,0) -> 0 | AZ33: =IF(AZ$34=1,80,0) -> 0 | BC33: =IF(BC$34=1,80,0) -> 0 | BF33: =IF(BF$34=1,80,0) -> 0
D34: =RANK(D35,$D35:$BG35)*D39 -> 3 | G34: =RANK(G35,$D35:$BG35)*G39 -> 1 | J34: =RANK(J35,$D35:$BG35)*J39 -> 0 | M34: =RANK(M35,$D35:$BG35)*M39 -> 0 | P34: =RANK(P35,$D35:$BG35)*P39 -> 0 | S34: =RANK(S35,$D35:$BG35)*S39 -> 4 | V34: =RANK(V35,$D35:$BG35)*V39 -> 0 | Y34: =RANK(Y35,$D35:$BG35)*Y39 -> 0 | AB34: =RANK(AB35,$D35:$BG35)*AB39 -> 0 | AE34: =RANK(AE35,$D35:$BG35)*AE39 -> 0 | AH34: =RANK(AH35,$D35:$BG35)*AH39 -> 2 | AK34: =RANK(AK35,$D35:$BG35)*AK39 -> 0 | AN34: =RANK(AN35,$D35:$BG35)*AN39 -> 0 | AQ34: =RANK(AQ35,$D35:$BG35)*AQ39 -> 0 | AT34: =RANK(AT35,$D35:$BG35)*AT39 -> 0 | AW34: =RANK(AW35,$D35:$BG35)*AW39 -> 0 | AZ34: =RANK(AZ35,$D35:$BG35)*AZ39 -> 0 | BC34: =RANK(BC35,$D35:$BG35)*BC39 -> 0 | BF34: =RANK(BF35,$D35:$BG35)*BF39 -> 0
D35: =SUM(D36:D38) -> -798865.2018 | G35: =SUM(G36:G38) -> 8801562.908 | J35: =SUM(J36:J38) -> -999998365.7 | M35: =SUM(M36:M38) -> -999999399 | P35: =SUM(P36:P38) -> -999998983.7 | S35: =SUM(S36:S38) -> -997069.6364 | V35: =SUM(V36:V38) -> -999994798 | Y35: =SUM(Y36:Y38) -> -999998765.7 | AB35: =SUM(AB36:AB38) -> -999997965.7 | AE35: =SUM(AE36:AE38) -> -999997058 | AH35: =SUM(AH36:AH38) -> 1494 | AK35: =SUM(AK36:AK38) -> -999999966.8 | AN35: =SUM(AN36:AN38) -> -999998144.2 | AQ35: =SUM(AQ36:AQ38) -> -999999976.6 | AT35: =SUM(AT36:AT38) -> -1000000000 | AW35: =SUM(AW36:AW38) -> -1000000000 | AZ35: =SUM(AZ36:AZ38) -> -999998770.4 | BC35: =SUM(BC36:BC38) -> -9998949 | BF35: =SUM(BF36:BF38) -> -10000000
D36: =+E40 -> 85 | G36: =+H40 -> 85 | J36: =+K40 -> 1 | M36: =+N40 -> 1 | P36: =+Q40 -> 2 | S36: =+T40 -> 4 | V36: =+W40 -> 2 | Y36: =+Z40 -> 1 | AB36: =+AC40 -> 1 | AE36: =+AF40 -> 2 | AH36: =+AI40 -> 4 | AK36: =+AL40 -> 2 | AN36: =+AO40 -> 2 | AQ36: =+AR40 -> 1 | AT36: =+AU40 -> 0 | AW36: =+AX40 -> 0 | AZ36: =+BA40 -> 1 | BC36: =+BD40 -> 1 | BF36: =+BG40 -> 0
D37: =+D41*100 -> 1057.798165 | G37: =+G41*100 -> 1389.908257 | J37: =+J41*100 -> 1633.333333 | M37: =+M41*100 -> 600 | P37: =+P41*100 -> 1014.285714 | S37: =+S41*100 -> 2936.363636 | V37: =+V41*100 -> 5200 | Y37: =+Y41*100 -> 1233.333333 | AB37: =+AB41*100 -> 2033.333333 | AE37: =+AE41*100 -> 2940 | AH37: =+AH41*100 -> 1490 | AK37: =+AK41*2 -> 31.23076923 | AN37: =+AN41*100 -> 1853.846154 | AQ37: =+AQ41*2 -> 22.44444444 | AT37: =+AT41*100 -> 0 | AW37: =+AW41*100 -> 0 | AZ37: =+AZ41*100 -> 1228.571429 | BC37: =+BC41*100 -> 1050 | BF37: =+BF41*100 -> 0
D38: =IF(E40-$B3/2<0,-1000000000,D40*D39*100000+D40) -> -800008 | G38: =IF(H40-$B3/2<0,-1000000000,G40*G39*100000+G40) -> 8800088 | J38: =IF(K40-$B3/2<0,-1000000000,J40*J39*100000+J40) -> -1000000000 | M38: =IF(N40-$B3/2<0,-1000000000,M40*M39*100000+M40) -> -1000000000 | P38: =IF(Q40-$B3/2<0,-1000000000,P40*P39*100000+P40) -> -1000000000 | S38: =IF(T40-$B3/2<0,-1000000000,S40*S39*100000+S40) -> -1000010 | V38: =IF(W40-$B3/2<0,-1000000000,V40*V39*100000+V40) -> -1000000000 | Y38: =IF(Z40-$B3/2<0,-1000000000,Y40*Y39*100000+Y40) -> -1000000000 | AB38: =IF(AC40-$B3/2<0,-1000000000,AB40*AB39*100000+AB40) -> -1000000000 | AE38: =IF(AF40-$B3/2<0,-1000000000,AE40*AE39*100000+AE40) -> -1000000000 | AH38: =IF(AI40-$B3/2<0,-1000000000,AH40*AH39*100000+AH40) -> 0 | AK38: =IF(AL40-$B3/2<0,-1000000000,AK40*AK39*100000+AK40) -> -1000000000 | AN38: =IF(AO40-$B3/2<0,-1000000000,AN40*AN39*100000+AN40) -> -1000000000 | AQ38: =IF(AR40-$B3/2<0,-1000000000,AQ40*AQ39*100000+AQ40) -> -1000000000 | AT38: =IF(AU40-$B3/2<0,-1000000000,AT40*AT39*100000+AT40) -> -1000000000 | AW38: =IF(AX40-$B3/2<0,-1000000000,AW40*AW39*100000+AW40) -> -1000000000 | AZ38: =IF(BA40-$B3/2<0,-1000000000,AZ40*AZ39*100000+AZ40) -> -1000000000 | BC38: =IF(BD40-$B3/2<0,-10000000,BC40*BC39*100000+BC40) -> -10000000 | BF38: =IF(BG40-$B3/2<0,-10000000,BF40*BF39*100000+BF40) -> -10000000
B39: Classificats | C39: =SUM(D39:BF39) -> 4 | D39: =IF(E40>=$B3/2,1,0) -> 1 | G39: =IF(H40>=$B3/2,1,0) -> 1 | J39: =IF(K40>=$B3/2,1,0) -> 0 | M39: =IF(N40>=$B3/2,1,0) -> 0 | P39: =IF(Q40>=$B3/2,1,0) -> 0 | S39: =IF(T40>=$B3/2,1,0) -> 1 | V39: =IF(W40>=$B3/2,1,0) -> 0 | Y39: =IF(Z40>=$B3/2,1,0) -> 0 | AB39: =IF(AC40>=$B3/2,1,0) -> 0 | AE39: =IF(AF40>=$B3/2,1,0) -> 0 | AH39: =IF(AI40>=$B3/2,1,0) -> 1 | AK39: =IF(AL40>=$B3/2,1,0) -> 0 | AN39: =IF(AO40>=$B3/2,1,0) -> 0 | AQ39: =IF(AR40>=$B3/2,1,0) -> 0 | AT39: =IF(AU40>=$B3/2,1,0) -> 0 | AW39: =IF(AX40>=$B3/2,1,0) -> 0 | AZ39: =IF(BA40>=$B3/2,1,0) -> 0 | BC39: =IF(BD40>=$B3/2,1,0) -> 0 | BF39: =IF(BG40>=$B3/2,1,0) -> 0 | BI39: =MAX(BJ42:BJ278) -> 0
D40: =IF(SUM(D45:D417)<-1000,-100000000,SUM(D45:D417)) -> -8 | E40: =COUNT(E45:E417) -> 85 | G40: =IF(SUM(G45:G417)<-1000,-100000000,SUM(G45:G417)) -> 88 | H40: =COUNT(H45:H417) -> 85 | J40: =IF(SUM(J45:J417)<-1000,-100000000,SUM(J45:J417)) -> -10 | K40: =COUNT(K45:K417) -> 1 | M40: =IF(SUM(M45:M417)<-1000,-100000000,SUM(M45:M417)) -> 4 | N40: =COUNT(N45:N417) -> 1 | P40: =IF(SUM(P45:P417)<-1000,-100000000,SUM(P45:P417)) -> -14 | Q40: =COUNT(Q45:Q417) -> 2 | S40: =IF(SUM(S45:S417)<-1000,-100000000,SUM(S45:S417)) -> -10 | T40: =COUNT(T45:T417) -> 4 | V40: =IF(SUM(V45:V417)<-1000,-100000000,SUM(V45:V417)) -> -20 | W40: =COUNT(W45:W417) -> 2 | Y40: =IF(SUM(Y45:Y417)<-1000,-100000000,SUM(Y45:Y417)) -> 4 | Z40: =COUNT(Z45:Z417) -> 1 | AB40: =IF(SUM(AB45:AB417)<-1000,-100000000,SUM(AB45:AB417)) -> -10 | AC40: =COUNT(AC45:AC417) -> 1 | AE40: =IF(SUM(AE45:AE417)<-1000,-100000000,SUM(AE45:AE417)) -> 0 | AF40: =COUNT(AF45:AF417) -> 2 | AH40: =IF(SUM(AH45:AH417)<-1000,-100000000,SUM(AH45:AH417)) -> 0 | AI40: =COUNT(AI45:AI417) -> 4 | AK40: =IF(SUM(AK45:AK417)<-1000,-100000000,SUM(AK45:AK417)) -> -8 | AL40: =COUNT(AL45:AL417) -> 2 | AN40: =IF(SUM(AN45:AN417)<-1000,-100000000,SUM(AN45:AN417)) -> -6 | AO40: =COUNT(AO45:AO417) -> 2 | AQ40: =IF(SUM(AQ45:AQ417)<-1000,-100000000,SUM(AQ45:AQ417)) -> 0 | AR40: =COUNT(AR45:AR417) -> 1 | AT40: =IF(SUM(AT45:AT417)<-1000,-100000000,SUM(AT45:AT417)) -> -100000000 | AU40: =COUNT(AU45:AU417) -> 0 | AW40: =IF(SUM(AW45:AW417)<-1000,-100000000,SUM(AW45:AW417)) -> -100000000 | AX40: =COUNT(AX45:AX417) -> 0 | AZ40: =IF(SUM(AZ45:AZ417)<-1000,-100000000,SUM(AZ45:AZ417)) -> -10 | BA40: =COUNT(BA45:BA417) -> 1 | BC40: =IF(SUM(BC45:BC417)<-1000,-100000000,SUM(BC45:BC417)) -> 0 | BD40: =COUNT(BD45:BD417) -> 1 | BF40: =IF(SUM(BF45:BF417)<-1000,-100000000,SUM(BF45:BF417)) -> -100000000 | BG40: =COUNT(BG45:BG417) -> 0 | BJ40: A
D41: =+E41/F41 -> 10.57798165 | E41: =SUM(E45:E417) -> 2306 | F41: =SUM(F45:F417) -> 218 | G41: =+H41/I41 -> 13.89908257 | H41: =SUM(H45:H417) -> 3030 | I41: =SUM(I45:I417) -> 218 | J41: =+K41/L41 -> 16.33333333 | K41: =SUM(K45:K417) -> 49 | L41: =SUM(L45:L417) -> 3 | M41: =+N41/O41 -> 6 | N41: =SUM(N45:N417) -> 12 | O41: =SUM(O45:O417) -> 2 | P41: =+Q41/R41 -> 10.14285714 | Q41: =SUM(Q45:Q417) -> 71 | R41: =SUM(R45:R417) -> 7 | S41: =+T41/U41 -> 29.36363636 | T41: =SUM(T45:T417) -> 323 | U41: =SUM(U45:U417) -> 11 | V41: =+W41/X41 -> 52 | W41: =SUM(W45:W417) -> 260 | X41: =SUM(X45:X417) -> 5 | Y41: =+Z41/AA41 -> 12.33333333 | Z41: =SUM(Z45:Z417) -> 37 | AA41: =SUM(AA45:AA417) -> 3 | AB41: =+AC41/AD41 -> 20.33333333 | AC41: =SUM(AC45:AC417) -> 61 | AD41: =SUM(AD45:AD417) -> 3 | AE41: =+AF41/AG41 -> 29.4 | AF41: =SUM(AF45:AF417) -> 147 | AG41: =SUM(AG45:AG417) -> 5 | AH41: =+AI41/AJ41 -> 14.9 | AI41: =SUM(AI45:AI417) -> 149 | AJ41: =SUM(AJ45:AJ417) -> 10 | AK41: =+AL41/AM41 -> 15.61538462 | AL41: =SUM(AL45:AL417) -> 203 | AM41: =SUM(AM45:AM417) -> 13 | AN41: =+AO41/AP41 -> 18.53846154 | AO41: =SUM(AO45:AO417) -> 241 | AP41: =SUM(AP45:AP417) -> 13 | AQ41: =+AR41/AS41 -> 11.22222222 | AR41: =SUM(AR45:AR417) -> 101 | AS41: =SUM(AS45:AS417) -> 9 | AT41: =+AU41/AV41 -> 0 | AU41: =SUM(AU45:AU417) -> 0 | AV41: =SUM(AV45:AV417) -> -1 | AW41: =+AX41/AY41 -> 0 | AX41: =SUM(AX45:AX417) -> 0 | AY41: =SUM(AY45:AY417) -> -1 | AZ41: =+BA41/BB41 -> 12.28571429 | BA41: =SUM(BA45:BA417) -> 86 | BB41: =SUM(BB45:BB417) -> 7 | BC41: =+BD41/BE41 -> 10.5 | BD41: =SUM(BD45:BD417) -> 21 | BE41: =SUM(BE45:BE417) -> 2 | BF41: =+BG41/BH41 -> 0 | BG41: =SUM(BG45:BG417) -> 0 | BH41: =SUM(BH45:BH417) -> -1 | BJ41: B
J42: =COUNTIF(J45:J64,10) -> 0 | S42: =COUNTIF(S45:S64,10) -> 0 | V42: =COUNTIF(V45:V64,10) -> 0 | Y42: =COUNTIF(Y45:Y64,10) -> 0 | AN42: =COUNTIF(AN45:AN64,10) -> 0 | AT42: =COUNTIF(AT45:AT64,10) -> 0 | AW42: =COUNTIF(AW45:AW64,10) -> 0 | AZ42: =COUNTIF(AZ45:AZ64,10) -> 0 | BI42: =MAX(BJ45:BJ281) -> 0
D43: Mariajo | G43: Emiliano | J43: Marcos | M43: Álex | P43: Marta | S43: Nuri | V43: Montse | Y43: Rosa | AB43: Luisa | AE43: Jordi V. | AH43: Ferran | AK43: José | AN43: Fely | AQ43: Chesca | AT43: Goretti | AW43: Grau | AZ43: Mª Carmen | BC43: Tere | BF43: Marina | BI43: =COUNT(BI45:BI432) -> 85 | BJ43: A | BK43: B | BL43: C
C44: Comentaris | D44: Premi | E44: Punts | F44: Mans | G44: Premi | H44: Punts | I44: Mans | J44: Premi | K44: Punts | L44: Mans | M44: Premi | N44: Punts | O44: Mans | P44: Premi | Q44: Punts | R44: Mans | S44: Premi | T44: Punts | U44: Mans | V44: Premi | W44: Punts | X44: Mans | Y44: Premi | Z44: Punts | AA44: Mans | AB44: Premi | AC44: Punts | AD44: Mans | AE44: Premi | AF44: Punts | AH44: Premi | AI44: Punts | AK44: Premi | AL44: Punts | AN44: Premi | AO44: Punts | AQ44: Premi | AR44: Punts | AT44: Premi | AU44: Punts | AW44: Premi | AX44: Punts | AZ44: Premi | BA44: Punts | BC44: Premi | BD44: Punts | BF44: Premi | BG44: Punts | BI44: Data
B45: 1 | D45: -10 | E45: 20 | F45: 1 | G45: 10 | H45: 0 | I45: 1 | AT45: -10000 | AV45: -1 | AW45: -10000 | AY45: -1 | BF45: -10000 | BH45: -1 | BI45: 2022-12-19 | BJ45: =+D45+G45+J45+M45+P45+S45+V45+Y45+AB45+AE45+AH45+AK45+AN45+AQ45+AT45+AW45+AZ45+BC45+BF45 -> -30000 | BT45: =+S45+P45+M45+J45+G45+D45 -> 0
B46: 2 | D46: -10 | E46: 1 | F46: 1 | G46: 10 | H46: 0 | I46: 1 | BI46: 2022-12-19 | BJ46: =+D46+G46+J46+M46+P46+S46+V46+Y46+AB46+AE46+AH46+AK46+AN46+AQ46+AT46+AW46+AZ46+BC46+BF46 -> 0 | BT46: =+S46+P46+M46+J46+G46+D46 -> 0
B47: 3 | D47: 10 | E47: 0 | F47: 1 | G47: -10 | H47: 30 | I47: 1 | BI47: 2022-12-19 | BJ47: 0 | BT47: 0
B48: 4 | D48: 10 | E48: 0 | F48: 1 | G48: -10 | H48: 2 | I48: 1 | BI48: 2022-12-19 | BJ48: 0 | BT48: 0
B49: 5 | D49: 10 | E49: 3 | F49: 2 | G49: -10 | H49: 74 | I49: 2 | M49: 4 | N49: 12 | O49: 2 | P49: -4 | Q49: 50 | R49: 2 | BI49: 2022-12-24 | BJ49: 0 | BT49: 0
B50: =+B49+1 -> 6 | D50: -10 | E50: 6 | F50: 1 | G50: 10 | H50: 0 | I50: 1 | BI50: 2022-12-24 | BJ50: =+D50+G50+J50+M50+P50+S50+V50+Y50+AB50+AE50+AH50+AK50+AN50+AQ50+AT50+AW50+AZ50+BC50+BF50 -> 0
B51: 7 | D51: 10 | E51: 0 | F51: 1 | G51: -10 | H51: 76 | I51: 1 | BI51: 2022-12-24 | BJ51: 0
B52: 8 | D52: -10 | E52: 39 | F52: 1 | G52: 10 | H52: 0 | I52: 1 | BI52: 2022-12-24 | BJ52: 0
B53: 9 | D53: -10 | E53: 3 | F53: 1 | G53: 10 | H53: 0 | I53: 1 | BI53: 2022-12-25 | BJ53: 0
B54: 10 | D54: -10 | E54: 14 | F54: 1 | G54: 10 | H54: 0 | I54: 1 | BI54: 2022-12-25 | BJ54: 0
B55: 11 | D55: 10 | E55: 3 | F55: 3 | G55: 0 | H55: 34 | I55: 3 | J55: -10 | K55: 49 | L55: 3 | BI55: 2022-12-25 | BJ55: 0
B56: 12 | D56: 10 | E56: 21 | F56: 5 | G56: 0 | H56: 58 | I56: 5 | P56: -10 | Q56: 21 | R56: 5 | BI56: 2022-12-28 | BJ56: 0
B57: 13 | D57: 10 | E57: 12 | F57: 2 | G57: -10 | H57: 15 | I57: 2 | BI57: 2023-01-01 | BJ57: 0
B58: 14 | D58: 10 | E58: 4 | F58: 2 | G58: -10 | H58: 24 | I58: 2 | BI58: 2023-01-01 | BJ58: =+D58+G58+J58+M58+P58+S58+V58+Y58+AB58+AE58+AH58+AK58+AN58+AQ58+AT58+AW58+AZ58+BC58+BF58 -> 0
B59: 15 | D59: -10 | E59: 26 | F59: 2 | G59: 10 | H59: 0 | I59: 2 | BI59: 2023-01-01 | BJ59: 0
B60: 16 | D60: -10 | E60: 22 | F60: 2 | G60: 10 | H60: 0 | I60: 2 | BI60: 2023-01-01 | BJ60: 0
B61: 17 | D61: -10 | E61: 60 | F61: 2 | G61: 10 | H61: 0 | I61: 2 | BI61: 2023-01-01 | BJ61: =+D61+G61+J61+M61+P61+S61+V61+Y61+AB61+AE61+AH61+AK61+AN61+AQ61+AT61+AW61+AZ61+BC61+BF61 -> 0
B62: 18 | D62: -10 | E62: 33 | F62: 2 | G62: 10 | H62: 0 | I62: 2 | BI62: 2023-01-01 | BJ62: 0
B63: 19 | D63: 10 | E63: 13 | F63: 2 | G63: -10 | H63: 78 | I63: 2 | BI63: 2023-01-01 | BJ63: 0
B64: 20 | D64: -10 | E64: 50 | F64: 2 | G64: 10 | H64: 45 | I64: 2 | BI64: 2023-01-02 | BJ64: 0
B65: 21 | D65: -10 | E65: 26 | F65: 2 | G65: 10 | H65: 0 | I65: 2 | BI65: 2023-01-02 | BJ65: 0
B66: 22 | D66: -10 | E66: 21 | F66: 2 | G66: 10 | H66: 14 | I66: 2 | BI66: 2023-01-04 | BJ66: 0
B67: 23 | D67: -10 | E67: 13 | F67: 2 | G67: 10 | H67: 12 | I67: 2 | BI67: 2023-01-04 | BJ67: 0
B68: 24 | D68: -10 | E68: 101 | F68: 2 | G68: 10 | H68: 39 | I68: 2 | BI68: 2023-01-04 | BJ68: 0
B69: 25 | D69: 10 | E69: 9 | F69: 2 | G69: -10 | H69: 108 | I69: 2 | BI69: 2023-01-04 | BJ69: 0
B70: 26 | D70: -10 | E70: 7 | F70: 2 | G70: 10 | H70: 2 | I70: 2 | BI70: 2023-01-04 | BJ70: 0
B71: 27 | D71: 10 | E71: 0 | F71: 2 | G71: -10 | H71: 75 | I71: 2 | BI71: 2023-01-05 | BJ71: 0
B72: 28 | D72: -10 | E72: 23 | F72: 2 | G72: 10 | H72: 14 | I72: 2 | BI72: 2023-01-05 | BJ72: 0
B73: 29 | D73: 10 | E73: 0 | F73: 2 | G73: -10 | H73: 37 | I73: 2 | BI73: 2023-01-05 | BJ73: 0
B74: 30 | D74: 10 | E74: 0 | F74: 2 | G74: -10 | H74: 28 | I74: 2 | BI74: 2023-01-05 | BJ74: 0
B75: 31 | D75: 10 | E75: 12 | F75: 2 | G75: -10 | H75: 82 | I75: 2 | BI75: 2023-01-08 | BJ75: 0
B76: 32 | D76: -10 | E76: 7 | F76: 2 | G76: 10 | H76: 0 | I76: 2 | BI76: 2023-01-08 | BJ76: 0
B77: 33 | D77: 10 | E77: 3 | F77: 2 | G77: -10 | H77: 32 | I77: 2 | BI77: 2023-01-08 | BJ77: 0
B78: 34 | D78: -10 | E78: 66 | F78: 2 | G78: 10 | H78: 0 | I78: 2 | BI78: 2023-01-08 | BJ78: 0
B79: 35 | D79: 10 | E79: 18 | F79: 2 | G79: -10 | H79: 39 | I79: 2 | BI79: 2023-01-08 | BJ79: 0
B80: 36 | D80: 10 | E80: 0 | F80: 2 | G80: -10 | H80: 28 | I80: 2 | BI80: 2023-01-08 | BJ80: 0
B81: 37 | D81: 10 | E81: 60 | F81: 3 | G81: -10 | H81: 85 | I81: 3 | S81: 0 | T81: 80 | U81: 3 | BI81: 2023-01-10 | BJ81: 0
B82: 38 | D82: 10 | E82: 24 | F82: 4 | G82: 0 | H82: 44 | I82: 4 | S82: -10 | T82: 104 | U82: 4 | BI82: 2023-01-10 | BJ82: =+D82+G82+J82+M82+P82+S82+V82+Y82+AB82+AE82+AH82+AK82+AN82+AQ82+AT82+AW82+AZ82+BC82+BF82 -> 0
B83: 39 | D83: 10 | E83: 24 | F83: 4 | G83: 4 | H83: 117 | I83: 4 | S83: -4 | T83: 119 | U83: 4 | V83: -10 | W83: 230 | X83: 4 | BI83: 2023-01-10 | BJ83: 0
B84: 40 | D84: -4 | E84: 21 | F84: 1 | G84: 10 | H84: 0 | I84: 1 | S84: 4 | T84: 20 | U84: 0 | V84: -10 | W84: 30 | X84: 1 | BI84: 2023-01-10 | BJ84: 0
B85: 41 | D85: -4 | E85: 48 | F85: 3 | G85: 10 | H85: 0 | I85: 3 | Y85: 4 | Z85: 37 | AA85: 3 | AB85: -10 | AC85: 61 | AD85: 3 | BI85: 2023-01-11 | BJ85: 0
B86: 42 | D86: -10 | E86: 40 | F86: 2 | G86: 10 | H86: 9 | I86: 2 | BI86: 2023-01-15 | BJ86: 0
B87: 43 | D87: -10 | E87: 16 | F87: 2 | G87: 10 | H87: 0 | I87: 2 | BI87: 2023-01-15 | BJ87: 0
B88: 44 | D88: -10 | E88: 46 | F88: 2 | G88: 10 | H88: 15 | I88: 2 | BI88: 2023-01-15 | BJ88: 0
B89: 45 | D89: 10 | E89: 2 | F89: 2 | G89: -10 | H89: 13 | I89: 2 | BI89: 2023-01-15 | BJ89: 0
B90: 46 | D90: -10 | E90: 20 | F90: 2 | G90: 10 | H90: 0 | I90: 2 | BI90: 2023-01-15 | BJ90: 0
B91: 47 | D91: 10 | E91: 3 | F91: 2 | G91: -10 | H91: 23 | I91: 2 | BI91: 2023-01-16 | BJ91: 0
B92: 48 | D92: -10 | E92: 34 | F92: 2 | G92: 10 | H92: 2 | I92: 2 | BI92: 2023-01-16 | BJ92: 0
B93: 49 | D93: 10 | E93: 0 | F93: 2 | G93: -10 | H93: 28 | I93: 2 | BI93: 2023-01-16 | BJ93: 0
B94: 50 | D94: 10 | E94: 0 | F94: 2 | G94: -10 | H94: 11 | I94: 2 | BI94: 2023-01-16 | BJ94: 0
B95: 51 | D95: -10 | E95: 76 | F95: 2 | G95: 10 | H95: 0 | I95: 2 | BI95: 2023-01-16 | BJ95: 0
B96: 52 | D96: -10 | E96: 12 | F96: 2 | G96: 10 | H96: 13 | I96: 2 | BI96: 2023-01-16 | BJ96: 0
B97: 53 | D97: -10 | E97: 35 | F97: 2 | G97: 10 | H97: 0 | I97: 2 | BI97: 2023-01-17 | BJ97: 0
B98: 54 | D98: 10 | E98: 82 | F98: 3 | G98: 0 | H98: 123 | I98: 3 | AE98: -10 | AF98: 124 | AG98: 3 | BI98: 2023-01-17 | BJ98: 0
B99: 55 | D99: -10 | E99: 57 | F99: 2 | G99: 0 | H99: 25 | I99: 2 | AE99: 10 | AF99: 23 | AG99: 2 | BI99: 2023-01-17 | BJ99: 0
B100: 56 | D100: -10 | E100: 52 | F100: 2 | G100: =+D100*-1 -> 10 | H100: 0 | I100: 2 | BI100: 2023-01-24 | BJ100: 0
B101: 57 | D101: 10 | E101: 0 | F101: 2 | G101: =+D101*-1 -> -10 | H101: 59 | I101: 2 | BI101: 2023-01-24 | BJ101: =+D101+G101+J101+M101+P101+S101+V101+Y101+AB101+AE101+AH101+AK101+AN101+AQ101+AT101+AW101+AZ101+BC101+BF101 -> 0
B102: 58 | D102: -10 | E102: 36 | F102: 2 | G102: 10 | H102: 0 | I102: 2 | BI102: 2023-01-24 | BJ102: 0
B103: 59 | D103: -10 | E103: 39 | F103: 2 | G103: 10 | H103: 0 | I103: 2 | BI103: 2023-01-24 | BJ103: 0
B104: 60 | D104: -10 | E104: 66 | F104: 2 | G104: 10 | H104: 28 | I104: 2 | BI104: 2023-01-25 | BJ104: 0
B105: 61 | D105: -10 | E105: 101 | F105: 2 | G105: 10 | H105: 0 | I105: 2 | BI105: 2023-01-25 | BJ105: 0
B106: 62 | D106: -10 | E106: 12 | F106: 2 | G106: 10 | H106: 4 | I106: 2 | BI106: 2023-01-25 | BJ106: 0
B107: 63 | D107: -10 | E107: 19 | F107: 2 | G107: 10 | H107: 0 | I107: 2 | BI107: 2023-01-25 | BJ107: 0
B108: 64 | D108: -10 | E108: 27 | F108: 3 | G108: 10 | H108: 0 | I108: 3 | BI108: 2023-01-29 | BJ108: 0
B109: 65 | D109: -10 | E109: 26 | F109: 2 | G109: 10 | H109: 21 | I109: 2 | AH109: 0 | AI109: 23 | AJ109: 2 | BI109: 2023-01-29 | BJ109: 0
B110: 66 | D110: 10 | E110: 0 | F110: 2 | G110: -10 | H110: 89 | I110: 2 | BI110: 2023-02-09 | BJ110: 0
B111: 67 | D111: -10 | E111: 15 | F111: 2 | G111: 10 | H111: 14 | I111: 2 | BI111: 2023-02-09 | BJ111: 0
B112: 68 | D112: 10 | E112: 62 | F112: 8 | G112: -10 | H112: 248 | I112: 8 | AK112: -4 | AL112: 198 | AM112: 8 | AN112: 4 | AO112: 137 | AP112: 8 | BI112: 2023-02-12 | BJ112: 0
B113: 69 | D113: 10 | E113: 12 | F113: 5 | G113: 4 | H113: 42 | I113: 5 | AK113: -4 | AL113: 5 | AM113: 5 | AN113: -10 | AO113: 104 | AP113: 5 | BI113: 2023-02-18 | BJ113: 0
B114: 70 | D114: 10 | E114: 81 | F114: 6 | G114: -10 | H114: 85 | I114: 6 | BI114: 2023-02-19 | BJ114: 0
B115: 71 | D115: 10 | E115: 71 | F115: 9 | G115: -10 | H115: 185 | I115: 9 | AQ115: 0 | AR115: 101 | AS115: 9 | BI115: 2023-02-21 | BJ115: 0
B116: 72 | D116: -10 | E116: 75 | F116: 4 | G116: 10 | H116: 22 | I116: 4 | BI116: 2023-02-22 | BJ116: 0
B117: 73 | D117: 0 | E117: 49 | F117: 4 | G117: -10 | H117: 74 | I117: 4 | AH117: 10 | AI117: 25 | AJ117: 4 | BI117: 2023-03-01 | BJ117: 0
B118: 74 | D118: 10 | E118: 40 | F118: 5 | G118: -10 | H118: 153 | I118: 5 | BI118: 2023-03-12 | BJ118: 0
B119: 75 | D119: 10 | E119: 60 | F119: 4 | G119: -10 | H119: 78 | I119: 4 | BI119: 2023-03-15 | BJ119: 0
B120: 76 | D120: -10 | E120: 51 | F120: 2 | G120: 10 | H120: 12 | I120: 2 | BI120: 2023-03-15 | BJ120: 0
B121: 77 | D121: 10 | E121: 0 | F121: 3 | G121: -10 | H121: 78 | I121: 4 | AH121: 0 | AI121: 24 | AJ121: 2 | BI121: 2023-03-15 | BJ121: 0
B122: 78 | D122: 10 | E122: 0 | F122: 3 | G122: -10 | H122: 30 | I122: 3 | BI122: 2023-03-19 | BJ122: =+D122+G122+J122+M122+P122+S122+V122+Y122+AB122+AE122+AH122+AK122+AN122+AQ122+AT122+AW122+AZ122+BC122+BF122 -> 0
B123: 79 | D123: 10 | E123: 25 | F123: 6 | G123: -10 | H123: 118 | I123: 6 | BI123: 2023-04-06 | BJ123: 0
B124: 80 | D124: -10 | E124: 87 | F124: 3 | G124: 10 | H124: 36 | I124: 3 | BI124: 2023-04-18 | BJ124: 0
B125: 81 | D125: 10 | E125: 0 | F125: 2 | G125: 0 | H125: 38 | I125: 2 | AH125: -10 | AI125: 77 | AJ125: 2 | BI125: 2023-04-18 | BJ125: 0
B126: 82 | D126: 10 | E126: 0 | F126: 2 | G126: -10 | H126: 41 | I126: 2 | BI126: 2023-04-23 | BJ126: 0
B127: 83 | D127: 10 | E127: 12 | F127: 2 | G127: -10 | H127: 22 | I127: 2 | BC127: 0 | BD127: 21 | BE127: 2 | BI127: 2023-05-08 | BJ127: 0
B128: 84 | D128: 10 | E128: 37 | F128: 7 | G128: 0 | H128: 65 | I128: 7 | AZ128: -10 | BA128: 86 | BB128: 7 | BI128: 2023-05-09 | BJ128: 0
B129: 85 | D129: 10 | E129: 15 | F129: 7 | G129: -10 | H129: 34 | I129: 6 | BI129: 2023-05-28 | BJ129: 0
B130: 86 | BJ130: 0
B131: 87 | BJ131: 0
B132: 88 | BJ132: 0
B133: 89 | BJ133: 0
B134: 90 | BJ134: 0
B135: 91
B136: 92
B137: 93
B138: 94
B139: 95
B140: 96
B141: 97
B142: 98
B143: 99
B144: 100
B145: 101
B146: 102
B147: 103
B148: 104
B149: 105
B150: 106
B151: 107
B152: 108
B153: 109
B154: 110
B155: 111
B156: 112
B157: 113
B158: 114
B159: 115
B160: 116
B161: 117
B162: 118
B163: 119
B164: 120
B165: 121
B166: 122
B167: 123
B168: 124
B169: 125
B170: 126
B171: 127
B172: 128
B173: 129
B174: 130
B175: 131
B176: 132
B177: 133
B178: 134
B179: 135
B180: 136
B181: 137
B182: 138
B183: 139
B184: 140
B185: 141
B186: 142
B187: 143
B188: 144
B189: 145
B190: 146
B191: 147
B192: 148
B193: 149
B194: 150
B195: 151
B196: 152
B197: 153
B198: 154
B199: 155
B200: 156
B201: 157
B202: 158
... 49 more rows
